Cogmind - Beta 14 @@@ ROGUE MODE // 2024.09.18 @ 19:23:40 Player: Dull Result: Destroyed by T3-SFT(R) with Subdweller Machine Gun Performance ------------- Evolutions (0) 0 Regions Visited (2) 400 Robots Destroyed (29) 145 Value Destroyed (491) 491 Prototype IDs (0) 0 Alien Tech Used (0) 0 Bonus (0) 0 TOTAL SCORE: 1036 Bonus ------- None Cogmind --------- Core Integrity 0/250 Matter 200/300 Energy 100/100 System Corruption 0% Temperature Cool (0) Movement Treading (160) Location -10/Subcaves Parts ------- > --- POWER (1) -------- (None) > --- PROPULSION (2) --- Light Treads > --- UTILITY (2) ------ (None) > --- WEAPON (2) ------- Assault Rifle > --- INVENTORY (5) ---- Ion Engine Light Ion Engine Light Treads Assault Rifle Mining Laser Peak State ------------ > --- POWER ------------ Light Ion Engine > --- PROPULSION ------- Light Treads Light Treads > --- UTILITY ---------- Huge Storage Unit Light Armor Plating > --- WEAPON ----------- Assault Rifle Battle Rifle > --- INVENTORY -------- Ion Engine Light Ion Engine Light Ion Engine Light Ion Engine Light Treads Light Treads Wheel Heat Sink Medium Storage Unit Large Storage Unit Large Matter Pod Improved Terrain Scanner Tractor Beam Medium Laser Medium Laser Assault Rifle Assault Rifle Assault Rifle Assault Rifle Mining Laser [Rating: 10] Favorites ----------- Power Light Ion Engine Engine Light Ion Engine Propulsion Light Treads Treads Light Treads Leg Aluminum Leg Utility Light Armor Plating Device Improved Terrain Scanner Storage Huge Storage Unit Protection Light Armor Plating Weapon Assault Rifle Energy Gun Medium Laser Ballistic Gun Assault Rifle Special Weapon Mining Laser Build | -11 -10 -10 ------- Run | Yrd Mat Sub Slots Evolved . | . . . Power . | . . . Propulsion . | . . . Utility . | . . . Weapon . | . . . Parts Attached 18 | 3 12 3 Power 1 | . 1 . Engine 1 | . 1 . Core . | . . . Reactor . | . . . Propulsion 3 | 2 . 1 Treads 3 | 2 . 1 Leg . | . . . Wheel . | . . . Hover . | . . . Flight . | . . . Utility 5 | 1 3 1 Device 1 | 1 . . Storage 2 | . 2 . Processor . | . . . Hackware . | . . . Protection 2 | . 1 1 Artifact . | . . . Weapon 9 | . 8 1 Energy Gun 1 | . 1 . Energy Cannon . | . . . Ballistic Gun 7 | . 6 1 Ballistic Cannon . | . . . Launcher . | . . . Special Weapon 1 | . 1 . Impact Weapon . | . . . Slashing Weapon . | . . . Piercing Weapon . | . . . Special Melee Weapon . | . . . Unidentified Prototypes . | . . . Parts Lost 5 | . 1 4 Power 2 | . 1 1 Propulsion 1 | . . 1 Utility 1 | . . 1 Weapon 1 | . . 1 Highest Loss Streak 4 | . 1 4 To Critical Strikes . | . . . Average Slot Usage (%) 96 | . 99 88 Engine 13 | . 13 14 Treads 27 | . 28 27 Storage 11 | . 14 4 Protection 13 | . 13 13 Energy Gun 2 | . 2 . Ballistic Gun 25 | . 24 27 Peak Build Rating 10 | 9 9 10 Average Rating 8 | 7 8 9 On Entrance 8 | 6 9 9 Naked Turns . | . . . Heaviest Build 90 | 12 90 90 Greatest Support 40 | 40 40 40 Greatest Overweight (x) 2 | . 2 2 Average Overweight (x) . | . 1 . Largest Inventory Capacity 25 | 8 25 25 Average Capacity 18 | 8 21 11 Most Carried 23 | 6 23 20 Average Carried 13 | 5 15 9 Final Capacity 25 | 8 25 5 Final Carried 20 | 2 20 5 Class Distribution -------------------- 100% | Mutant Dominant Class ---------------- Mutant | -10/Materials Mutant | -10/Subcaves Resources | -11 -10 -10 ----------- Run | Yrd Mat Sub Matter Collected 832 | 236 506 90 Remotely . | . . . Salvage Created 788 | 93 546 149 Parts 62 | 4 51 7 Haulers Intercepted 1 | . 1 . Recyclers Shooed 1 | . 1 . Parts Field Recycled . | . . . Retrieved Matter . | . . . Parts Self-Destructed 4 | . . 4 Prevented . | . . . Kills | -11 -10 -10 ------- Run | Yrd Mat Sub Combat Hostiles Destroyed 20 | . 17 3 Guns 20 | . 17 3 Classes Destroyed 9 | 2 6 1 Worker 2 | . 2 . Tunneler 1 | 1 . . Hauler 1 | . 1 . Recycler 1 | 1 . . Operator 1 | . 1 . Watcher 3 | . 3 . Swarmer 12 | . 12 . Grunt 5 | . 5 . Subdweller 3 | . . 3 Best Kill Streak 3 | 2 3 1 Combat Bots Only 3 | . 3 1 Max Kills in Single Turn 1 | 1 1 1 Gunslinging . | . . . Exploded . | . . . Melee . | . . . Uniques/NPCs Destroyed . | . . . Combat | -11 -10 -10 -------- Run | Yrd Mat Sub Hostile Shots Fired 148 | . 89 59 Missed 46 | . 26 20 Damage Taken 1423 | . 576 847 Core 252 | . 93 159 Absorbed by Shields . | . . . Core Remaining (%) 100 | 100 . . Volleys Fired 106 | 6 68 32 Largest 2 | 2 2 2 Hottest 100 | 70 100 45 Shots Fired 202 | 12 130 60 Gun 201 | 12 129 60 Cannon . | . . . Launcher . | . . . Special 1 | . 1 . Kinetic 167 | 6 101 60 Thermal 35 | 6 29 . Explosive . | . . . Electromagnetic . | . . . Robot Hit Streak 18 | 5 7 18 Robot Miss Streak 4 | 1 4 2 Penetration Max . | . . . Secondary Targets 4 | . 4 . Max Gunslinging Chain 1 | . 1 . Shots Hit Robots 124 | 8 71 45 Core Hits 45 | 4 34 7 Critical Kills . | . . . Critical Parts Destroyed 1 | . 1 . Critical Strikes 1 | . 1 . Destroy 1 | . 1 . Melee Attacks . | . . . Impact . | . . . Slashing . | . . . Piercing . | . . . Sneak Attacks . | . . . Combat Hostiles . | . . . Follow-up Attacks . | . . . Damage Inflicted 1601 | 84 965 552 Guns 1589 | 84 953 552 Cannons . | . . . Explosions . | . . . Melee . | . . . Ramming 12 | . 12 . Kinetic 1317 | 23 742 552 Thermal 272 | 61 211 . Explosive . | . . . Electromagnetic . | . . . Impact . | . . . Slashing . | . . . Piercing . | . . . Highest Corruption . | . . . Average Corruption . | . . . Corruption Purged . | . . . Corruption Blocked . | . . . Overload Shots . | . . . Overflow Damage . | . . . Projectiles . | . . . Explosions . | . . . Melee . | . . . Knockbacks . | . . . Impact . | . . . Kinetic . | . . . Secondary . | . . . Self-Inflicted Damage . | . . . Shots . | . . . Rammed 4 | . 4 . Targets Rammed 4 | . 4 . Kicked . | . . . Crushed . | . . . Highest Temperature 289 | 100 289 . Average Temperature 97 | 47 105 . Received Heat Transfer 231 | . 126 105 Effects 1 | . 1 . Interference 1 | . 1 . Siege Activations . | . . . Robots Corrupted . | . . . Combat Hostiles . | . . . Parts Fried . | . . . Impact Corruptions . | . . . Robots Melted . | . . . Combat Hostiles . | . . . Parts Melted 2 | . 2 . Heat Transferred 777 | 185 592 . Parts Sabotaged . | . . . Parts Stolen . | . . . Parts Stripped . | . . . Power Chain Reactions . | . . . Alert | -11 -10 -10 ------- Run | Yrd Mat Sub Peak Influence 183 | 10 183 . Initial 6 | . 6 . Average 88 | 6 89 . Maximum Alert Level . | . . . Low Security (%) 100 | 100 100 . Level 1 . | . . . Level 2 . | . . . Level 3 . | . . . Level 4 . | . . . Level 5 . | . . . High Security . | . . . Max Security . | . . . Squads Dispatched 2 | . 2 . Investigation 1 | . 1 . Extermination . | . . . Reinforcement 1 | . 1 . Assault . | . . . Garrison . | . . . Intercept . | . . . Searches Triggered . | . . . Construction Impeded . | . . . Haulers Reinforced . | . . . Active Scanning Responses . | . . . Cargo Convoy Interrupts . | . . . Stealth | -11 -10 -10 --------- Run | Yrd Mat Sub Distress Signals 1 | . 1 . Communications Jammed . | . . . Distress Signals . | . . . Times Spotted 30 | . 25 5 Peak Tracking Total 4 | . 4 3 Tactical Retreats . | . . . Traps | -11 -10 -10 ------- Run | Yrd Mat Sub Traps Triggered . | . . . Indirectly . | . . . Trap Hack Attempts . | . . . Triggered . | . . . Disarmed . | . . . Reprogrammed . | . . . Reused . | . . . Traps Extracted . | . . . Installed . | . . . Triggered . | . . . Machines | -11 -10 -10 ---------- Run | Yrd Mat Sub Machines Disabled . | . . . Max in Single Turn . | . . . Machines Repaired . | . . . Machines Dismantled . | . . . Machines Sabotaged . | . . . Overloaded Fab Kills . | . . . Hacking | -11 -10 -10 --------- Run | Yrd Mat Sub Machines Accessed 8 | . 8 . Terminals 6 | . 6 . Fabricators . | . . . Repair Stations . | . . . Recycling Units 2 | . 2 . Scanalyzers . | . . . Garrison Access . | . . . Total Hacks 19 | . 19 . Successful 10 | . 10 . Failed 9 | . 9 . Catastrophic 1 | . 1 . Database Lockouts . | . . . Manual 15 | . 15 . Terminals 15 | . 15 . Fabricators . | . . . Repair Stations . | . . . Recycling Units 4 | . 4 . Scanalyzers . | . . . Garrison Access . | . . . Terminal Hacks 4 | . 4 . Robot Analysis 4 | . 4 . Fabricator Hacks . | . . . Repair Station Hacks . | . . . Recycling Unit Hacks . | . . . Scanalyzer . | . . . Garrison Access Hacks . | . . . Unauthorized Hacks 6 | . 6 . Terminals 6 | . 6 . Botnet 6 | . 6 . Fabricators . | . . . Repair Stations . | . . . Recycling Units . | . . . Scanalyzers . | . . . Garrison Access . | . . . Data Cores Recovered . | . . . Used . | . . . Hacking Detections 8 | . 8 . Full Trace Events 1 | . 1 . Feedback Events . | . . . Feedback Blocked . | . . . Robot Schematics Acquired . | . . . Robots Built . | . . . Authchips . | . . . Time . | . . . Total Robot Build Rating . | . . . Part Schematics Acquired . | . . . Parts Built . | . . . Authchips . | . . . Time . | . . . Total Part Build Rating . | . . . Parts Repaired . | . . . Time . | . . . Parts Recycled . | . . . Recycled Matter . | . . . Retrieved Matter . | . . . Retrieved Components . | . . . Parts Scanalyzed . | . . . Part Schematics Acquired . | . . . Parts Damaged . | . . . Bothacking | -11 -10 -10 ------------ Run | Yrd Mat Sub Used RIF Installer . | . . . Robots Hacked . | . . . Non-combat . | . . . Combat . | . . . Robot Hacks Applied . | . . . Relay Couplers Released . | . . . Fabnet Peak Effective % . | . . . Robots Rewired . | . . . Allies Hacked . | . . . Hacks Repelled . | . . . Allies | -11 -10 -10 -------- Run | Yrd Mat Sub Total Allies . | . . . Largest Group . | . . . Highest-Rated Group . | . . . Highest-Rated Ally . | . . . Total Orders . | . . . Ally Attacks . | . . . Total Damage . | . . . Kills . | . . . Allies Corrupted . | . . . Allies Melted . | . . . Intel | -11 -10 -10 ------- Run | Yrd Mat Sub Robot Analysis Total 4 | . 4 . Derelict Logs Recovered . | . . . Drone Launches . | . . . Drone Recoveries . | . . . Exploration | -11 -10 -10 ------------- Run | Yrd Mat Sub Turns Passed 3755 | 44 2597 1114 Spaces Moved 1320 | 17 786 517 Core . | . . . Treads 1306 | 3 786 517 Legs 14 | 14 . . Wheels . | . . . Hover . | . . . Flight . | . . . Fastest Speed 120 | 120 160 160 Average Speed 237 | 127 268 194 Slowest Speed 320 | 160 320 320 Overloaded Moves . | . . . Propulsion Burnouts . | . . . Robots Hopped . | . . . Cave-ins Triggered . | . . . Exploration Rate (%) 43 | 2 100 29 Regions Visited 2 Branch Regions 1 Pre-discovered Areas . | . . . Known Exits Taken . | . . . Unknown Exits Taken 2 | 1 1 . Scrap Searched 1 | . . 1 Spaces Dug 1 | . 1 . Terrain Destroyed 1 | . 1 . Melee . | . . . Projectile 1 | . 1 . AOE . | . . . Terrain Rammed . | . . . Walls Destroyed . | . . . Machines Disabled . | . . . Actions | -11 -10 -10 --------- Run | Yrd Mat Sub Total 1740 | 29 1138 573 Wait 247 | . 240 7 Move 1318 | 16 785 517 Hop . | . . . Pick Up 25 | . 21 4 Fast Attach 3 | 1 1 1 Attach 1 | . 1 . Detach . | . . . Swap 14 | 2 10 2 Drop 18 | 4 8 6 Fire 106 | 6 68 32 Melee . | . . . Ram . | . . . Kick . | . . . Crush 4 | . 4 . Escape Stasis . | . . . Rewire . | . . . Trap . | . . . Miscellaneous 4 | . . 4 Route ------- -11/Scrapyard -10/Materials (discovered 5 exits: [*Mat x3] / [*Min] / [*Sub]) -10/Subcaves (discovered 1 exit: [*Mat]) History --------- Turn | Location | Event 1 | -11/Scrapyard | Discovered new exit (range 1) 45 | -11/Scrapyard | Entered Materials 301 | -10/Materials | Build established: Mutant 416 | -10/Materials | Discovered new exit (range 12) 618 | -10/Materials | Discovered new exit (range 10) 2042 | -10/Materials | Discovered new exit (range 11) 2247 | -10/Materials | Discovered new exit (range 16) 2247 | -10/Materials | Discovered new exit (range 10) 2642 | -10/Materials | Entered Subcaves 3149 | -10/Subcaves | A swath of the cavern ceiling suddenly collapsed 3203 | -10/Subcaves | Discovered new exit (range 11) 3704 | -10/Subcaves | Core integrity fell below 50% 3743 | -10/Subcaves | Core integrity fell below 20% 3756 | -10/Subcaves | Destroyed by T3-SFT(R) with Subdweller Machine Gun Last Messages --------------- A swath of the cavern ceiling suddenly collapses. 03203_ EXIT=FOUND 03329_ UL-ZBH(R) destroyed. 03358_ UG-DSE(R) destroyed. 03364_ Acquired 48 matter. 03369_ Scrap Shield Fragment affixed to Scrap Shield (+47). 03373_ Scrap Shield Fragment affixed to Scrap Shield (+50). 03377_ Scrap Shield Fragment affixed to Scrap Shield (+47). 03380_ Scrap Shield Fragment affixed to Scrap Shield (+42). 03391_ Subatomizers dissect the Disposable Heat Sink. 03480_ LJ-VWS(u) tweaks Twisted Machinery. 03532_ Subatomizers dissect the Disposable Heat Sink. 03550_ Acquired 12 matter. T3-SFT(R) emerges from concealment. 03730_ Lgt. Treads destroyed. 03732_ 94-5VS(R) destroyed. 03734_ Scrap Shield destroyed. 03748_ Battle Rifle destroyed. 03751_ T3-SFT(R) affixes Scrap Shield Fragment to Scrap Shield. 03756_ Lgt. Ion Engine destroyed. Map ----- +----------------------------------------------------+ | ?????????????????????????????????????????????????? | | ?????????????????????????????????????????????????? | | ?????????????????????????????????????????????????? | | ?????????????????????????????????????????????????? | | ?????????????????????????????????????????????????? | | ???????????????????????????????????????????####### | | ?????????????????????????????????????????### | | ????????????????????????????????????????## ### | | ????????????????????????????????????????# ##?## | | ????????????????????????????????#####???# #???# | | ???????????????????????????????## #??## # #???? | | ??????????????????????????????## ##??# # #???? | | ??????????????????????????????# #???## ##??# | | ??????????????????????????????# ##???# #### | | ??????????????????????????????# ##??# # | | ??????????????????????????????# #### ####### | | ??????????????????????????????## ## ###??? | | ???????????????????????????????## ## ##?# | | ??????????????????????????????### ### "#?# | | ???????????? ?????????#####??## ## "#?# | | ???????????? ??????## ##?# ##?# | | ??????????? #??## #### #### | | ??????????? ;;# #### # | | ?????????? R ### | | ??????????? %R =&*## | | ??????????? # @ &%& ##### ## # | | ???????????????????# ]&! #???## #### | | ????????????? #????### ##??? | | ?????????????### ###; ## #### | | ???????????????## ###???#### # # # | | ???????????????????????????# ## ## ## | | ???????????????????????????## ## ##?? ## | | ????????????????????????????#### ###????###### | | ???????????????????????????????###???????????## | | ??????????????????????????????????????????????#### | | ?????????????????????????????????????????????????? | | ?????????????????????????????????????????????????? | | ?????????????????????????????????????????????????? | | ?????????????????????????????????????????????????? | | ?????????????????????????????????????????????????? | | ?????????????????????????????????????????????????? | | ?????????????????????????????????????????????????? | | ?????????????????????????????????????????????????? | | ?????????????????????????????????????????????????? | | ?????????????????????????????????????????????????? | | ?????????????????????????????????????????????????? | | ?????????????????????????????????????????????????? | | ?????????????????????????????????????????????????? | | ?????????????????????????????????????????????????? | | | +----------------------------------------------------+ Best States ------------- Heat Dissipation 25 Energy Generation 10 Energy Capacity 125 Matter Stores 300 Matter Capacity 300 Sight Range 16 Terrain Scan Range 16 Terrain Scan Density 10 Armor Coverage 800 Evasion (%) 50 Recoil Reduction 2 Item Schematics ----------------- None Robot Schematics ------------------ None Fabricated ------------ Nothing Alien Tech Used ----------------- None Achievements -------------- None Challenges ------------ None Game ------ Seed AlertRingFemtoactuators Manual? 0 Play Time 00:14:46 Cumulative 112.6 hours Start 2024.09.18 @ 19:09:46 End 2024.09.18 @ 19:23:40 Sessions 1 Manual Loads 0 Difficulty Rogue Special Mode None Game No. 161 Rogue 161 Adventurer 0 Explorer 0 Win Type - Total 1 Types 1/0/0/0/0/0/0/0/0 Lore% 26 Gallery% 57 Achievement% 45 Wizard Run 0 Options --------- Layout 0 ASCII 0 Keyboard 0 Movement Mouse Keybinds 1 Fullscreen 1 Font 18/TerminusBold Map View 76x50 Zoom Use 0% Tactical HUD 1 Map Filters NONE Filters NONE Steam 1 RUN: bb94cb02-7aa5-4e34-b383-c8807cb69132